Cogmind - Beta 11.1 @@@ ROGUE MODE // 2022.12.17 @ 01:17:34 Player: hinoya Result: Destroyed by G-47 Trooper with Particle Gun Performance ------------- Evolutions (2) 1000 Regions Visited (6) 1200 Robots Destroyed (6) 30 Value Destroyed (412) 412 Prototype IDs (2) 40 Alien Tech Used (0) 0 Bonus (200) 200 TOTAL SCORE: 2882 Bonus ------- Entered Garrisons 200 Cogmind --------- Core Integrity 0/550 Matter 240/300 Energy 81/265 System Corruption 7% Temperature Cool (27) Movement Core (200) Ox3 Location -8/Garrison Parts ------- > --- POWER (3) -------- Reinforced Ion Engine > --- PROPULSION (4) --- (None) > --- UTILITY (2) ------ (None) > --- WEAPON (2) ------- (None) > --- INVENTORY (5) ---- Aluminum Leg Peak State ------------ > --- POWER ------------ Ion Engine > --- PROPULSION ------- Aluminum Leg Aluminum Leg Aluminum Leg > --- UTILITY ---------- Visual Processing Unit Improved Terrain Scanner > --- WEAPON ----------- Light Assault Rifle Rocket Launcher > --- INVENTORY -------- Heat Sink Small Storage Unit Reaction Control System EM Pulse Gun Mining Claw [Rating: 12] Favorites ----------- Power Ion Engine Engine Ion Engine Propulsion Aluminum Leg Treads Light Treads Leg Aluminum Leg Utility Visual Processing Unit Device Structural Scanner Storage Small Storage Unit Processor Visual Processing Unit Weapon Light Assault Rifle Energy Gun EM Pulse Gun Ballistic Gun Light Assault Rifle Launcher Rocket Launcher Slashing Weapon Mining Claw Build | -11 -10 -10 -10 -9 -8 -8 ------- Run | Scr Mat Min Exi Min Mat Gar Slots Evolved 4 | . . . . . 4 . Power 2 | . . . . . 2 . Propulsion 2 | . . . . . 2 . Utility . | . . . . . . . Weapon . | . . . . . . . Parts Attached 18 | 6 2 . . 2 2 6 Power 2 | 1 . . . . . 1 Engine 2 | 1 . . . . . 1 Core . | . . . . . . . Reactor . | . . . . . . . Propulsion 4 | 2 . . . . 1 1 Treads 1 | . . . . . . 1 Leg 3 | 2 . . . . 1 . Wheel . | . . . . . . . Hover . | . . . . . . . Flight . | . . . . . . . Utility 6 | 1 1 . . 2 . 2 Device 4 | . 1 . . 1 . 2 Storage 1 | 1 . . . . . . Processor 1 | . . . . 1 . . Hackware . | . . . . . . . Protection . | . . . . . . . Artifact . | . . . . . . . Weapon 6 | 2 1 . . . 1 2 Energy Gun 2 | 1 . . . . . 1 Energy Cannon . | . . . . . . . Ballistic Gun 2 | 1 . . . . . 1 Ballistic Cannon . | . . . . . . . Launcher 1 | . . . . . 1 . Special Weapon . | . . . . . . . Impact Weapon . | . . . . . . . Slashing Weapon 1 | . 1 . . . . . Piercing Weapon . | . . . . . . . Special Melee Weapon . | . . . . . . . Unidentified Prototypes . | . . . . . . . Corrupted Parts 1 | . . . . . . 1 System Corruption 1 | . . . . . . 1 Parts Lost 13 | . . . . . . 13 Power 1 | . . . . . . 1 Propulsion 4 | . . . . . . 4 Utility 4 | . . . . . . 4 Weapon 4 | . . . . . . 4 Highest Loss Streak 9 | . . . . . . 9 To Critical Strikes . | . . . . . . . Average Slot Usage (%) 82 | . 97 100 100 100 72 49 Engine 10 | . 14 14 14 14 9 4 Leg 25 | . 28 28 28 28 27 18 Device 10 | . 11 14 14 14 9 7 Storage 4 | . 14 14 14 . . . Processor 7 | . . . . 14 9 7 Energy Gun 1 | . 4 . . . . 1 Ballistic Gun 10 | . 14 14 14 14 9 5 Launcher 2 | . . . . . 5 4 Slashing Weapon 7 | . 9 14 14 14 3 . Naked Turns 8 | . . . . . . 8 Heaviest Build 14 | 13 14 14 14 14 11 11 Greatest Support 30 | 20 20 20 20 20 30 30 Greatest Overweight (x) 3 | . . . . . . 3 Average Overweight (x) . | . . . . . . . Largest Inventory Capacity 8 | 8 8 8 8 8 5 5 Average Capacity 6 | 6 8 8 8 5 5 5 Most Carried 6 | 3 4 4 5 6 5 5 Average Carried 3 | . 1 4 4 4 4 4 Final Capacity 8 | 8 8 8 8 5 5 5 Final Carried 5 | . 4 4 5 5 5 1 Class Distribution -------------------- 100% | Mutant Dominant Class ---------------- Mutant | -10/Materials Mutant | -10/Mines Mutant | -10/Exiles Mutant | -9/Mines Mutant | -8/Materials Mutant | -8/Garrison Resources | -11 -10 -10 -10 -9 -8 -8 ----------- Run | Scr Mat Min Exi Min Mat Gar Matter Collected 395 | 260 29 . . 12 29 65 Remotely . | . . . . . . . Salvage Created 180 | . 34 . . 18 29 99 Parts 10 | . 2 . . 2 . 6 Haulers Intercepted . | . . . . . . . Recyclers Shooed . | . . . . . . . Parts Field Recycled . | . . . . . . . Retrieved Matter . | . . . . . . . Parts Self-Destructed . | . . . . . . . Prevented . | . . . . . . . Kills | -11 -10 -10 -10 -9 -8 -8 ------- Run | Scr Mat Min Exi Min Mat Gar Combat Hostiles Destroyed 5 | . 1 . . . 1 3 Melee 1 | . . . . . . 1 Guns 1 | . 1 . . . . . AOE 3 | . . . . . 1 2 Classes Destroyed 4 | . 1 . . 1 1 1 Tunneler 1 | . . . . 1 . . Grunt 1 | . 1 . . . . . Brawler 1 | . . . . . . 1 Sentry 3 | . . . . . 1 2 Best Kill Streak 2 | . 1 . . 1 1 2 Combat Bots Only 2 | . 1 . . . 1 2 Max Kills in Single Turn 1 | . 1 . . 1 1 1 Gunslinging . | . . . . . . . Exploded 1 | . . . . . 1 1 Melee 1 | . . . . . . 1 Uniques/NPCs Destroyed . | . . . . . . . Combat | -11 -10 -10 -10 -9 -8 -8 -------- Run | Scr Mat Min Exi Min Mat Gar Damage Taken 1347 | . 67 . . . 116 1164 Core 586 | . 22 . . . . 564 Absorbed by Shields . | . . . . . . . Core Remaining (%) 95 | 100 . . . 91 . . Volleys Fired 31 | . 9 . 2 . 7 13 Largest 2 | . 1 . 1 . 2 2 Hottest 63 | . 20 . 20 . 53 63 Shots Fired 45 | . 9 . 2 . 10 24 Gun 34 | . 9 . 2 . 7 16 Cannon . | . . . . . . . Launcher 11 | . . . . . 3 8 Special . | . . . . . . . Kinetic 30 | . 9 . 2 . 7 12 Thermal . | . . . . . . . Explosive 11 | . . . . . 3 8 Electromagnetic 4 | . . . . . . 4 Robot Hit Streak 6 | . 5 . . . 5 6 Robot Miss Streak 2 | . 2 . . . 1 2 Penetration Max . | . . . . . . . Secondary Targets . | . . . . . . . Shots Hit Robots 30 | . 5 . . 1 9 15 Core Hits 18 | . 2 . . 1 2 13 Critical Kills . | . . . . . . . Critical Parts Destroyed . | . . . . . . . Critical Strikes . | . . . . . . . Melee Attacks 1 | . . . . 1 . . Impact . | . . . . . . . Slashing 1 | . . . . 1 . . Piercing . | . . . . . . . Sneak Attacks 1 | . . . . 1 . . Combat Hostiles . | . . . . . . . Follow-up Attacks . | . . . . . . . Damage Inflicted 556 | . 43 . . 49 137 327 Guns 207 | . 43 . . . 65 99 Cannons . | . . . . . . . Explosions 272 | . . . . . 72 200 Melee 49 | . . . . 49 . . Ramming 28 | . . . . . . 28 Kinetic 184 | . 43 . . . 65 76 Thermal 47 | . . . . . . 47 Explosive 225 | . . . . . 72 153 Electromagnetic 23 | . . . . . . 23 Impact . | . . . . . . . Slashing 49 | . . . . 49 . . Piercing . | . . . . . . . Highest Corruption 7 | . . . . . . 7 Average Corruption 4 | . . . . . . 4 Corruption Purged . | . . . . . . . Corruption Blocked . | . . . . . . . Effects 2 | . . . . . . 2 Energy Discharges 1 | . . . . . . 1 Alerts 1 | . . . . . . 1 Overload Shots . | . . . . . . . Overflow Damage 32 | . . . . . . 32 Projectiles . | . . . . . . . Explosions 32 | . . . . . . 32 Melee . | . . . . . . . Knockbacks . | . . . . . . . Impact . | . . . . . . . Kinetic . | . . . . . . . Secondary . | . . . . . . . Self-Inflicted Damage 115 | . . . . . . 115 Shots 4 | . . . . . . 4 Rammed 9 | . . . . . . 9 Targets Rammed 11 | . . . . . . 11 Kicked 2 | . . . . . . 2 Crushed . | . . . . . . . Highest Temperature 36 | . 12 . . . 9 36 Average Temperature 10 | . 7 . . . 6 11 Received Heat Transfer 756 | . 36 . . . 36 684 Siege Activations . | . . . . . . . Robots Corrupted . | . . . . . . . Combat Hostiles . | . . . . . . . Parts Fried . | . . . . . . . Impact Corruptions . | . . . . . . . Robots Melted . | . . . . . . . Combat Hostiles . | . . . . . . . Parts Melted . | . . . . . . . Heat Transferred 50 | . . . . . . 50 Parts Sabotaged . | . . . . . . . Parts Stolen . | . . . . . . . Parts Stripped . | . . . . . . . Power Chain Reactions 1 | . . . . . . 1 Missiles Intercepted . | . . . . . . . Alert | -11 -10 -10 -10 -9 -8 -8 ------- Run | Scr Mat Min Exi Min Mat Gar Peak Influence 159 | . 30 11 . 10 62 159 Initial 40 | . . 11 . . 3 40 Average 37 | . 8 11 . 4 35 116 Maximum Alert Level . | . . . . . . . Low Security (%) 100 | 100 100 100 . 100 100 100 Level 1 . | . . . . . . . Level 2 . | . . . . . . . Level 3 . | . . . . . . . Level 4 . | . . . . . . . Level 5 . | . . . . . . . High Security . | . . . . . . . Max Security . | . . . . . . . Squads Dispatched 2 | . 2 . . . . . Investigation 1 | . 1 . . . . . Extermination . | . . . . . . . Reinforcement 1 | . 1 . . . . . Assault . | . . . . . . . Garrison . | . . . . . . . Intercept . | . . . . . . . Searches Triggered . | . . . . . . . Construction Impeded . | . . . . . . . Haulers Reinforced . | . . . . . . . Active Scanning Responses . | . . . . . . . Cargo Convoy Interrupts . | . . . . . . . Stealth | -11 -10 -10 -10 -9 -8 -8 --------- Run | Scr Mat Min Exi Min Mat Gar Distress Signals . | . . . . . . . Communications Jammed . | . . . . . . . Distress Signals . | . . . . . . . Times Spotted 15 | . 3 . . . 1 11 Peak Tracking Total 9 | . 2 . . . 1 9 Tactical Retreats . | . . . . . . . Traps | -11 -10 -10 -10 -9 -8 -8 ------- Run | Scr Mat Min Exi Min Mat Gar Traps Triggered . | . . . . . . . Indirectly . | . . . . . . . Trap Hack Attempts . | . . . . . . . Triggered . | . . . . . . . Disarmed . | . . . . . . . Reprogrammed . | . . . . . . . Reused . | . . . . . . . Traps Extracted . | . . . . . . . Installed . | . . . . . . . Triggered . | . . . . . . . Machines | -11 -10 -10 -10 -9 -8 -8 ---------- Run | Scr Mat Min Exi Min Mat Gar Machines Disabled 1 | . . . . . . 1 Max in Single Turn 1 | . . . . . . 1 Garrison Relay 1 | . . . . . . 1 Machines Sabotaged . | . . . . . . . Garrisons Compromised . | . . . . . . . Overloaded Fab Kills . | . . . . . . . Hacking | -11 -10 -10 -10 -9 -8 -8 --------- Run | Scr Mat Min Exi Min Mat Gar Machines Accessed 5 | . . . . 1 4 . Terminals 3 | . . . . 1 2 . Fabricators . | . . . . . . . Repair Stations . | . . . . . . . Recycling Units . | . . . . . . . Scanalyzers 1 | . . . . . 1 . Garrison Access 1 | . . . . . 1 . Total Hacks 13 | . . . . 2 11 . Successful 9 | . . . . 1 8 . Failed 4 | . . . . 1 3 . Catastrophic . | . . . . . . . Database Lockouts . | . . . . . . . Manual . | . . . . . . . Terminals 8 | . . . . 2 6 . Fabricators . | . . . . . . . Repair Stations . | . . . . . . . Recycling Units . | . . . . . . . Scanalyzers 3 | . . . . . 3 . Garrison Access 2 | . . . . . 2 . Terminal Hacks 6 | . . . . 1 5 . Record 3 | . . . . . 3 . Prototype ID Bank 1 | . . . . . 1 . Alert Level 1 | . . . . . 1 . Zone Layout 1 | . . . . 1 . . Fabricator Hacks . | . . . . . . . Repair Station Hacks . | . . . . . . . Recycling Unit Hacks . | . . . . . . . Scanalyzer 2 | . . . . . 2 . Insert Component 1 | . . . . . 1 . Analyze 1 | . . . . . 1 . Garrison Access Hacks 1 | . . . . . 1 . Unlock Access 1 | . . . . . 1 . Unauthorized Hacks . | . . . . . . . Terminals . | . . . . . . . Fabricators . | . . . . . . . Repair Stations . | . . . . . . . Recycling Units . | . . . . . . . Scanalyzers . | . . . . . . . Garrison Access . | . . . . . . . Data Cores Recovered . | . . . . . . . Used . | . . . . . . . Hacking Detections 4 | . . . . 1 3 . Full Trace Events . | . . . . . . . Feedback Events . | . . . . . . . Feedback Blocked . | . . . . . . . Robot Schematics Acquired . | . . . . . . . Robots Built . | . . . . . . . Authchips . | . . . . . . . Time . | . . . . . . . Total Robot Build Rating . | . . . . . . . Part Schematics Acquired 1 | . . . . . 1 . Parts Built . | . . . . . . . Authchips . | . . . . . . . Time . | . . . . . . . Total Part Build Rating . | . . . . . . . Parts Repaired . | . . . . . . . Time . | . . . . . . . Parts Recycled . | . . . . . . . Recycled Matter . | . . . . . . . Retrieved Matter . | . . . . . . . Retrieved Components . | . . . . . . . Parts Scanalyzed 1 | . . . . . 1 . Part Schematics Acquired 1 | . . . . . 1 . Parts Damaged . | . . . . . . . Bothacking | -11 -10 -10 -10 -9 -8 -8 ------------ Run | Scr Mat Min Exi Min Mat Gar Used RIF Installer . | . . . . . . . Robots Hacked . | . . . . . . . Non-combat . | . . . . . . . Combat . | . . . . . . . Robot Hacks Applied . | . . . . . . . Relay Couplers Released 5 | . . . . . . 5 Machine Destruction 5 | . . . . . . 5 Fabnet Peak Effective % . | . . . . . . . Robots Rewired . | . . . . . . . Allies Hacked . | . . . . . . . Hacks Repelled . | . . . . . . . Allies | -11 -10 -10 -10 -9 -8 -8 -------- Run | Scr Mat Min Exi Min Mat Gar Total Allies . | . . . . . . . Largest Group . | . . . . . . . Highest-Rated Group . | . . . . . . . Highest-Rated Ally . | . . . . . . . Total Orders . | . . . . . . . Ally Attacks . | . . . . . . . Total Damage . | . . . . . . . Kills . | . . . . . . . Allies Corrupted . | . . . . . . . Allies Melted . | . . . . . . . Intel | -11 -10 -10 -10 -9 -8 -8 ------- Run | Scr Mat Min Exi Min Mat Gar Robot Analysis Total . | . . . . . . . Derelict Logs Recovered . | . . . . . . . Drone Launches . | . . . . . . . Drone Recoveries . | . . . . . . . Exploration | -11 -10 -10 -10 -9 -8 -8 ------------- Run | Scr Mat Min Exi Min Mat Gar Turns Passed 920 | 58 173 54 46 220 164 205 Spaces Moved 666 | 45 125 46 35 174 121 120 Core 15 | 11 . . . . . 4 Treads . | . . . . . . . Legs 651 | 34 125 46 35 174 121 116 Wheels . | . . . . . . . Hover . | . . . . . . . Flight . | . . . . . . . Fastest Speed 50 | 50 120 120 120 120 120 50 Average Speed 118 | 102 120 120 120 120 120 118 Slowest Speed 200 | 120 120 120 120 120 120 200 Overloaded Moves . | . . . . . . . Propulsion Burnouts . | . . . . . . . Robots Hopped . | . . . . . . . Cave-ins Triggered . | . . . . . . . Exploration Rate (%) 16 | 3 19 9 8 31 16 26 Regions Visited 6 Branch Regions 3 Pre-discovered Areas . | . . . . . . . Known Exits Taken 1 | . . . . . 1 . Unknown Exits Taken 5 | 1 1 1 1 1 . . Scrap Searched . | . . . . . . . Spaces Dug 5 | . . . . . . 5 Terrain Destroyed 77 | . . . . . 19 58 Melee . | . . . . . . . Projectile . | . . . . . . . AOE 77 | . . . . . 19 58 Terrain Rammed . | . . . . . . . Walls Destroyed . | . . . . . . . Machines Disabled . | . . . . . . . Actions | -11 -10 -10 -10 -9 -8 -8 --------- Run | Scr Mat Min Exi Min Mat Gar Total 750 | 56 140 45 37 184 130 158 Wait . | . . . . . . . Move 660 | 44 124 45 34 173 120 120 Hop . | . . . . . . . Pick Up 22 | 6 5 . 1 4 1 5 Fast Attach 1 | . . . . 1 . . Attach 16 | 6 1 . . 1 1 7 Detach . | . . . . . . . Swap 2 | . 1 . . . 1 . Drop 6 | . . . . 4 . 2 Fire 31 | . 9 . 2 . 7 13 Melee 1 | . . . . 1 . . Ram 5 | . . . . . . 5 Kick 2 | . . . . . . 2 Crush 4 | . . . . . . 4 Escape Stasis . | . . . . . . . Rewire . | . . . . . . . Trap . | . . . . . . . Miscellaneous . | . . . . . . . Route ------- -11/Scrapyard -10/Materials -10/Mines -10/Exiles -9/Mines -8/Materials -8/Garrison History --------- Turn | Location | Event 5 | -11/Scrapyard | Discovered new exit (range 14) 59 | -11/Scrapyard | Entered Materials 174 | -10/Materials | Met 8R-AWN 222 | -10/Materials | Discovered new exit (range 9) 232 | -10/Materials | Entered Mines 234 | -10/Mines | Followed 8R-AWN into the Mines 282 | -10/Mines | Discovered new exit (range 5) 286 | -10/Mines | Entered Exiles 307 | -10/Exiles | Build established: Mutant 313 | -10/Exiles | Discovered new exit (range 14) 332 | -10/Exiles | Entered Mines 546 | -9/Mines | Discovered new exit (range 5) 552 | -9/Mines | Entered Materials 552 | -8/Materials | Evolved 4 slots: Power x2, Propulsion x2 714 | -8/Materials | Identified exit to Garrison 716 | -8/Materials | Entered Garrison 760 | -8/Garrison | Triggered checkpoint 812 | -8/Garrison | Garrison Relay disabled 843 | -8/Garrison | Lost 3 parts (1p2w) 866 | -8/Garrison | Triggered checkpoint 888 | -8/Garrison | Triggered checkpoint 911 | -8/Garrison | Core integrity fell below 50% 915 | -8/Garrison | Core integrity fell below 20% 921 | -8/Garrison | Destroyed by G-47 Trooper with Particle Gun Last Messages --------------- 00902_ Slammed into G-47 Trooper. 00904_ G-47 Trooper suffers critical hit (Burn). 00904_ Slammed into G-47 Trooper. 00905_ Critical hit (Burn: +37). 00906_ Slammed into G-47 Trooper. 00907_ Reaction Control System destroyed. 00907_ Critical hit (Burn: +37). 00909_ Lgt. Treads destroyed. 00909_ Slammed into G-47 Trooper. 00909_ Heat Sink destroyed. 00909_ System corrupted by crushing effect (+5). 00910_ Slammed into G-47 Trooper. 00912_ Critical hit (Burn: +37). 00914_ Slammed into G-47 Trooper. 00914_ G-47 Trooper destroyed. 00915_ Acquired Rnf. Ion Engine. 00917_ Relay Coupler [Sentry] fries itself. 00919_ System corrupted: IFF burst signal emitted. 00920_ Acquired Aluminum Leg. 00921_ Critical hit (Burn: +37). Map ----- +----------------------------------------------------+ | ?????????????????????????????????????????????????? | | ?????????????????????????????????????????????????? | | ?????????????????????????????????????????????????? | | ?????????????????????????????????????????????????? | | ?????????????????????????????????????????????????? | | ?????????????????????????????????????????????????? | | ?????????????????????????????????????????????????? | | ?????????????????????????????????????????????????? | | ?????????????????????????????????????????????????? | | ?????????????????????????????????????????????????? | | ?????????????????????????????????????????????????? | | ?????????????? ?????????????????????????????????? | | ?????????????? ##""??######?????????????????????? | | ????????????#? ?? ##????????????????????? | | ????????????# ? ?? ?????????????????????? | | ????????????# ? ? ?????????????????????? | | ????????????# ?# ?# #?????????????????????? | | ????????????# ## ## ###???????????????????? | | ????????????" C#???????????????????? | | ????????????" #???????????????????? | | ????????????? #???????????????????? | | ??????????????? ????????????????????? | | ????????????# ???# ?# #??????##?????????????? | | ????????##### ## ## #####;;;##????????????? | | ?????? g g g % #????????????? | | ?????? b %@ g #????????????? | | ??????????### g * ####### #????????????? | | ????????????## ## ## ##?????# #????????????? | | ?????????????????# ?# #??????# #????????????? | | ?????????????????#####?# #??????# #????????????? | | ???????????????????????# #??????# #????????????? | | ???????????????????????# #??????# #????????????? | | ???????????????????????# #??????# #????????????? | | ???????????????????????# #??????# #????????????? | | ???????????????????????# ######## ############## | | ???????????????????????# # | | ???????????????????????# # | | ???????????????????????####### ################ # | | ?????????????????????????????# ######## #?????# # | | ????????????????????????????## ## #?????# # | | ??????????????????????????#### ## ##### ###???# # | | ??????????????????????????# # #?# #!#???# # | | ??????????????????????????# ## # #?## ! #???# # | | ?????????????????????????## #??#!! #???# | | ?????????????????????????# ##/ # #??# #???# | | ?????????????????????????# # # ##### # #???# | | ?????????????????????????# # ###???#### | | ?????????????????????????# # #####????????? | | ?????????????????????????# ## # #????????????? | | ?????????????????????????# ######????????????? | +----------------------------------------------------+ Best States ------------- Heat Dissipation 31 Energy Generation 12 Energy Capacity 265 Matter Stores 300 Matter Capacity 300 Sight Range 18 Terrain Scan Range 16 Terrain Scan Density 10 Evasion (%) 55 Recoil Reduction 1 Item Schematics ----------------- Rocket Launcher | -8/Materials | Scanalyzed Robot Schematics ------------------ None Fabricated ------------ Nothing Alien Tech Used ----------------- None Achievements -------------- None Challenges ------------ None Game ------ Seed CoilMicroBoregun Manual? 0 Play Time 00:15:48 Cumulative 2.7 hours Start 2022.12.17 @ 00:38:26 End 2022.12.17 @ 01:17:34 Sessions 1 Manual Loads 0 Difficulty Rogue Special Mode None Game No. 6 Rogue 5 Adventurer 0 Explorer 1 Win Type - Total 0 Types 0/0/0/0/0/0/0/0/0 Lore% 2 Gallery% 5 Achievement% 6 Wizard Run 0 Options --------- ASCII 1 Keyboard 0 Movement Arrows Keybinds 0 Fullscreen 1 Font 18/SmallcapsGlow Map View 76x50 Tactical HUD 1 Map Filters NONE Filters NONE Steam 1 RUN: 37182829-cdac-45ba-97cc-bf90b8cbf9a2